fUSD/lending_fUSD_20240712
["ID","MTS","AMOUNT","RATE_DAILY","PERIOD"]
[331865481,1720799437766,-306.01583976,0.00013924,2]
[331865482,1720799437778,-193.98416024,0.00013924,2]
[331865483,1720799437789,-175.92040291,0.0001397,3]
[331865484,1720799437800,-1015.63867092,0.0001397,3]
[331865485,1720799437811,-994.53623725,0.0001397,3]
[331865486,1720799437824,-1286.51473513,0.0001397,3]
[331865487,1720799437836,-2473.81855127,0.0001397,3]
[331865488,1720799437847,-1093.39984685,0.0001397,3]
[331865489,1720799437858,-27067.41330792,0.0001397,3]
[331865490,1720799437869,-8706.14019902,0.0001397,3]
[331865491,1720799437881,-463.62249194,0.0001397,3]
[331865701,1720799439881,-1786.98495026,0.0001397,3]
[331866293,1720799445664,-3350.0,0.0001397,3]
[331866305,1720799445723,-1133.46773634,0.0001397,3]
[331866309,1720799445780,-366.9676,0.0001397,3]
[331866340,1720799685873,484.48,0.00011072,2]
[331866350,1720800031188,150.0,0.00021868,120]
[331866356,1720800102937,155.0,0.00011199,2]
[331866359,1720800138038,155.0,0.00011199,2]
[331866363,1720800201583,155.0,0.00011199,2]
[331866364,1720800207574,489.03,0.00010993,2]
[331866365,1720800210781,150.0,0.0002295,120]
[331866367,1720800216532,155.0,0.00011199,2]
[331866371,1720800258054,200.61725219,0.00011199,2]
[331866373,1720800312243,103.15565115,0.00011199,2]
[331866374,1720800312271,1341.35793791,0.00011199,2]
[331866376,1720800323232,1444.51358906,0.00011199,2]
[331866378,1720800360980,150.0,0.0001136,2]
[331866384,1720800450837,150.0,0.00023536,120]
[331866385,1720800509103,500.0,0.0001136,2]
[331866386,1720800509460,680.0,0.0001136,2]
[331866387,1720800510788,150.0,0.00024621,120]
[331866427,1720800631784,-286.64798069,0.00012273,2]
[331866428,1720800631793,-847.53586131,0.00012301,2]
[331866429,1720800631804,-109.46413869,0.00012301,2]
[331866430,1720800631814,-1444.51358906,0.00012302,2]
[331866431,1720800631823,-153.17503639,0.00012638,2]
[331866432,1720800631835,-146.82496361,0.00012638,2]
[331866433,1720800631843,-300.0,0.00012638,2]
[331866434,1720800631852,-53.17503639,0.00012639,2]
[331866435,1720800631888,-4013.21729638,0.00012639,2]
[331866436,1720800632049,-1640.89,0.00012639,2]
[331866446,1720800637755,-569.89984797,0.00012639,2]
[331866447,1720800637770,-303.29325585,0.00012639,2]
[331866448,1720800637783,-760.67104376,0.00012639,2]
[331866449,1720800637869,-10634.7546688,0.00012639,2]
[331866450,1720800637913,-563.31326908,0.00012639,2]
[331866451,1720800637925,-815.0,0.00012639,2]
[331866452,1720800637974,-1144.5,0.00012639,2]
[331866453,1720800638037,-841.67496685,0.00012639,2]
[331866454,1720800638049,-3203.61061492,0.00012639,2]
[331866455,1720800638059,-975.40375746,0.00012639,2]
[331866456,1720800638070,-169.86830857,0.00012674,2]
[331866457,1720800638081,-195.18,0.0001284,2]
[331866458,1720800638090,-800.0,0.00012848,2]
[331866459,1720800638113,-185.95,0.00012865,2]
[331866460,1720800638143,-250.0,0.00012871,2]
[331866462,1720800638154,-200.0,0.00012889,2]
[331866464,1720800638163,-184.75,0.00012923,2]
[331866466,1720800638173,-489.03,0.00013257,2]
[331866468,1720800638183,-260.04977456,0.00013276,2]
[331866470,1720800638192,-150.99,0.00013276,2]
[331866472,1720800638201,-499.15,0.00013699,2]
[331866474,1720800638210,-5000.0,0.00013719,2]
[331866476,1720800638220,-3271.13086808,0.00013719,2]
[331866478,1720800638230,-5183.0,0.00013761,2]
[331866480,1720800638239,-38287.0,0.00013761,2]
[331866482,1720800638248,-1069.0,0.00013761,2]
[331866484,1720800638257,-420.0,0.00013865,2]
[331866485,1720800638266,-574.18743623,0.00013869,2]
[331866487,1720800638275,-559.648773,0.0001387,2]
[331866489,1720800638287,-9947.1652,0.0001387,2]
[331866491,1720800638297,-299.4225,0.0001387,2]
[331866493,1720800638306,-834.527,0.00013875,2]
[331866495,1720800638315,-7500.0,0.0001388,2]
[331866497,1720800638324,-320.15994644,0.0001389,2]
[331866499,1720800638333,-220.42,0.0001389,3]
[331866501,1720800638343,-155.0,0.00013899,2]
[331866503,1720800638353,-171.1422939,0.000139,2]
[331866505,1720800638362,-407.21734098,0.000139,2]
[331866507,1720800638371,-300.0,0.00013902,2]
[331866509,1720800638380,-980.51273,0.00013924,2]
[331866511,1720800638389,-21913.3636881,0.0001397,3]
[331866513,1720800638399,-500.0,0.00013973,4]
[331866515,1720800638408,-875.973,0.00013975,2]
[331866517,1720800638418,-1820.559,0.00013975,2]
[331866519,1720800638427,-2377.0,0.00013975,2]
[331866521,1720800638436,-837.88,0.00013975,2]
[331866523,1720800638445,-566.95972692,0.00013978,2]
[331866525,1720800638454,-500.0,0.00013978,2]
[331866527,1720800638463,-500.0,0.00013978,2]
[331866529,1720800638472,-500.0,0.00013978,2]
[331866531,1720800638481,-500.0,0.00013978,2]
[331866533,1720800638490,-1279.55,0.00013978,2]
[331866535,1720800638500,-500.0,0.00013978,2]
[331866536,1720800638510,-500.0,0.00013978,2]
[331866538,1720800638519,-500.0,0.00013978,2]
[331866540,1720800638528,-500.0,0.00013978,2]
[331866542,1720800638540,-500.0,0.00013978,2]
[331866544,1720800638548,-500.0,0.00013978,2]
[331866546,1720800638558,-500.0,0.00013978,2]
[331866548,1720800638567,-500.0,0.00013978,2]
[331866550,1720800638576,-500.0,0.00013978,2]
[331866551,1720800638585,-500.0,0.00013978,2]
[331866553,1720800638595,-500.0,0.00013979,2]
[331866555,1720800638604,-500.0,0.00013979,2]
[331866557,1720800638614,-389.91,0.00013979,2]
[331866559,1720800638623,-500.0,0.00013979,2]
[331866561,1720800638632,-529.97,0.00013979,2]
[331866563,1720800638642,-414.6,0.00013979,2]
[331866565,1720800638651,-500.0,0.00013979,2]
[331866567,1720800638660,-500.0,0.00013979,2]
[331866569,1720800638669,-500.0,0.00013979,2]
[331866571,1720800638678,-371.57888925,0.00013979,2]
[331866573,1720800638688,-500.0,0.00013979,2]
[331866575,1720800638697,-500.0,0.00013979,2]
[331866577,1720800638706,-500.0,0.00013979,2]
[331866579,1720800638716,-569.33382789,0.00013979,2]
[331866581,1720800638725,-1284.82,0.00013979,2]
[331866583,1720800638735,-500.0,0.00013979,2]
[331866585,1720800638744,-500.0,0.00013979,2]
[331866586,1720800638754,-500.0,0.00013979,2]
[331866588,1720800638763,-500.0,0.00013979,2]
[331866590,1720800638772,-500.0,0.00013979,2]
[331866592,1720800638783,-500.0,0.00013979,2]
[331866594,1720800638792,-500.0,0.00013979,2]
[331866596,1720800638802,-500.0,0.00013979,2]
[331866598,1720800638811,-500.0,0.00013979,2]
[331866600,1720800638820,-500.0,0.00013979,2]
[331866602,1720800638830,-424.66670308,0.00013979,2]
[331866604,1720800638839,-500.0,0.00013979,2]
[331866606,1720800638848,-500.0,0.00013979,2]
[331866608,1720800638858,-534.40878207,0.00013979,2]
[331866610,1720800638867,-500.0,0.00013979,2]
[331866612,1720800638878,-154055.22087742,0.0001398,3]
[331866614,1720800638890,-483.66,0.0001398,3]
[331866722,1720800639932,-6107.84038738,0.0001398,3]
[331866733,1720800640043,-5145.9968606,0.0001398,3]
[331866735,1720800640055,-9514.1913796,0.0001398,3]
[331866737,1720800640064,-4938.9499404,0.0001398,3]
[331866758,1720800640256,-961.27203814,0.0001398,3]
[331866841,1720800641248,1444.51358906,0.00011199,2]
[331867062,1720800642990,-2180.37715403,0.0001398,3]
[331867254,1720800644987,-1672.08861169,0.0001398,3]
[331867256,1720800644998,-1152.31990522,0.0001398,3]
[331867258,1720800645009,-964.95971265,0.0001398,3]
[331867381,1720800645886,-1226.24,0.00013979,2]
[331867385,1720800645896,-10317.42626457,0.0001398,3]
[331867396,1720800645943,-500.0,0.0001398,3]
[331867404,1720800645998,-1455.80283522,0.0001398,3]
[331867407,1720800646009,-54256.48664948,0.0001398,3]
[331867408,1720800646021,-332.19719291,0.0001398,2]
[331867410,1720800646034,-499.999999,0.00013989,2]
[331867413,1720800646045,-176.30734159,0.00013989,2]
[331867414,1720800646055,-350.0,0.0001399,2]
[331867416,1720800646064,-132255.54820505,0.0001399,3]
[331867419,1720800646080,-1459.44293405,0.0001399,3]
[331867423,1720800646114,-2475.51637979,0.0001399,3]
[331867430,1720800646171,-281.00881241,0.0001399,3]
[331867432,1720800646182,-27793.48092784,0.0001399,3]
[331867435,1720800646196,-568.14759517,0.0001399,3]
[331867437,1720800646210,-1981.0,0.0001399,3]
[331867440,1720800646226,-2990.50036596,0.0001399,3]
[331868702,1720800722419,482.2,0.00011125,2]
[331868703,1720800752397,150.0,0.00015928,120]
[331868707,1720801402336,484.37,0.00010876,2]
[331868710,1720801489037,57834.68000001,0.00011199,2]
[331868733,1720801820992,1441.48186076,0.00027,120]
[331868737,1720801832799,-897.45844353,0.000118,2]
[331868738,1720801832810,-332.1071299,0.0001241,2]
[331868739,1720801832819,-166.04615262,0.0001241,2]
[331868740,1720801832829,-378.15733547,0.0001251,2]
[331868741,1720801832838,-241.28128349,0.00012781,2]
[331868742,1720801832849,-2442.13233451,0.00012781,2]
[331868743,1720801832858,-250.0,0.00012845,2]
[331868744,1720801832867,-158.19,0.00012852,2]
[331868745,1720801832876,-1000.0,0.00012857,2]
[331868746,1720801832885,-157.61,0.0001289,2]
[331868747,1720801832894,-355.25,0.000129,2]
[331868748,1720801832903,-484.37,0.0001314,2]
[331868749,1720801832912,-710.42,0.00013178,2]
[331868750,1720801832921,-355.25,0.000132,2]
[331868751,1720801832930,-355.25,0.000132,2]
[331868752,1720801832939,-300.0,0.000133,4]
[331868753,1720801832949,-355.25,0.000134,2]
[331868754,1720801832958,-355.25,0.000134,2]
[331868755,1720801832967,-600.0,0.000134,4]
[331868756,1720801832977,-390.87120053,0.00013472,2]
[331868757,1720801832989,-364.67036088,0.00013472,2]
[331868758,1720801833013,-688.97202765,0.00013472,2]
[331868759,1720801833022,-355.25,0.000135,2]
[331868760,1720801833032,-900.0,0.000135,4]
[331868761,1720801833041,-155.43704552,0.00013516,2]
[331868762,1720801833051,-1999.93190739,0.00013574,2]
[331868763,1720801833061,-1300.0,0.000136,4]
[331868764,1720801833070,-528.18,0.00013699,2]
[331868765,1720801833079,-1600.0,0.000137,5]
[331868766,1720801833088,-2099.9,0.00013719,2]
[331868767,1720801833097,-283.57760031,0.0001379,2]
[331868786,1720801838016,-535.43603324,0.00012781,2]
[331868787,1720801838077,-37.81396676,0.00012781,2]
[331868788,1720801838088,-514.80674287,0.0001379,2]
[331868789,1720801838100,-2063.85767294,0.0001379,2]
[331868790,1720801838109,-300.0,0.000138,5]
[331868791,1720801838119,-13169.77646714,0.0001388,2]
[331868792,1720801838130,-410.174424,0.0001388,2]
[331868793,1720801838141,-16855.0,0.0001388,2]
[331868794,1720801838199,-2033.01980657,0.0001388,2]
[331868795,1720801838211,-2661.26269167,0.0001388,2]
[331868796,1720801838261,-974.17172246,0.0001388,2]
[331868797,1720801838321,-4519.65421666,0.0001388,2]
[331868798,1720801838383,-498.35828287,0.0001388,2]
[331868976,1720801840118,-2495.465992,0.0001388,2]
[331868978,1720801840129,-41374.91738175,0.0001388,2]
[331868981,1720801840141,-34469.87770357,0.0001388,2]
[331868983,1720801840151,-4422.6263,0.0001388,2]
[331868985,1720801840160,-320.1599463,0.0001389,2]
[331868986,1720801840169,-1559.971896,0.000139,2]
[331868988,1720801840178,-171.1422939,0.000139,2]
[331868991,1720801840188,-300.0,0.000139,5]
[331868993,1720801840197,-271.47822732,0.000139,2]
[331868995,1720801840207,-2862.24201608,0.00013904,2]
[331868997,1720801840217,-500.0,0.00013978,2]
[331868998,1720801840226,-500.0,0.00013978,2]
[331869000,1720801840236,-500.0,0.00013978,2]
[331869002,1720801840245,-500.0,0.00013978,2]
[331869004,1720801840254,-500.0,0.00013978,2]
[331869006,1720801840264,-2904.77643235,0.00013979,2]
[331869008,1720801840273,-500.0,0.00013979,2]
[331869010,1720801840282,-500.0,0.00013979,2]
[331869012,1720801840292,-500.0,0.00013979,2]
[331869014,1720801840301,-500.0,0.00013979,2]
[331869016,1720801840312,-500.0,0.00013979,2]
[331869018,1720801840321,-269.60518932,0.00013979,2]
[331869020,1720801840331,-351.11645338,0.00013979,2]
[331869022,1720801840340,-500.0,0.00013979,2]
[331869024,1720801840350,-500.0,0.00013979,2]
[331869026,1720801840359,-500.0,0.00013979,2]
[331869028,1720801840368,-500.0,0.00013979,2]
[331869030,1720801840378,-500.0,0.00013979,2]
[331869032,1720801840387,-371.34155435,0.00013979,2]
[331869034,1720801840397,-350.00091019,0.0001398,2]
[331869036,1720801840406,-500.0,0.00013989,2]
[331869038,1720801840415,-500.0,0.00013989,2]
[331869040,1720801840425,-500.0,0.00013989,2]
[331869042,1720801840439,-450.59144192,0.00013989,2]
[331869044,1720801840448,-500.0,0.00013989,2]
[331869046,1720801840457,-500.0,0.00013989,2]
[331869048,1720801840467,-292.34,0.00013989,7]
[331869050,1720801840476,-500.0,0.00013989,2]
[331869052,1720801840485,-500.0,0.00013989,2]
[331869054,1720801840495,-500.0,0.00013989,2]
[331869056,1720801840504,-500.0,0.00013989,2]
[331869058,1720801840514,-500.0,0.00013989,2]
[331869060,1720801840523,-500.0,0.00013989,2]
[331869062,1720801840533,-598.82,0.00013989,2]
[331869064,1720801840542,-500.0,0.00013989,2]
[331869066,1720801840552,-500.0,0.00013989,2]
[331869068,1720801840566,-500.0,0.00013989,2]
[331869070,1720801840575,-500.0,0.00013989,2]
[331869072,1720801840585,-500.0,0.00013989,2]
[331869074,1720801840593,-500.0,0.00013989,2]
[331869076,1720801840605,-317.9,0.00013989,2]
[331869078,1720801840614,-500.0,0.00013989,2]
[331869080,1720801840623,-500.0,0.00013989,2]
[331869082,1720801840632,-500.0,0.00013989,2]
[331869084,1720801840641,-500.0,0.00013989,2]
[331869086,1720801840650,-500.0,0.00013989,2]
[331869088,1720801840659,-500.0,0.00013989,2]
[331869090,1720801840668,-500.0,0.00013989,2]
[331869092,1720801840677,-500.0,0.00013989,2]
[331869094,1720801840686,-500.0,0.00013989,2]
[331869096,1720801840696,-500.0,0.00013989,2]
[331869098,1720801840706,-452.45845779,0.00013989,2]
[331869100,1720801840716,-500.0,0.00013989,2]
[331869102,1720801840725,-841.82,0.00013989,2]
[331869104,1720801840735,-500.0,0.00013989,2]
[331869106,1720801840744,-500.0,0.00013989,2]
[331869108,1720801840754,-261.83053362,0.00013989,2]
[331869110,1720801840764,-500.0,0.00013989,2]
[331869112,1720801840773,-500.0,0.00013989,2]
[331869114,1720801840782,-519.43200374,0.00013989,2]
[331869116,1720801840792,-500.0,0.00013989,2]
[331869118,1720801840801,-500.0,0.00013989,2]
[331869119,1720801840814,-500.0,0.00013989,2]
[331869121,1720801840823,-500.0,0.00013989,2]
[331869123,1720801840832,-500.0,0.00013989,2]
[331869125,1720801840842,-500.0,0.00013989,2]
[331869127,1720801840851,-500.0,0.00013989,2]
[331869129,1720801840860,-500.0,0.00013989,2]
[331869131,1720801840870,-500.0,0.00013989,2]
[331869133,1720801840879,-500.0,0.00013989,2]
[331869135,1720801840888,-500.0,0.00013989,2]
[331869154,1720801841056,-500.0,0.00013989,2]
[331869156,1720801841070,-500.0,0.00013989,2]
[331869158,1720801841079,-500.0,0.00013989,2]
[331869160,1720801841088,-513229.318905,0.0001399,3]
[331869162,1720801841097,-620228.60417,0.0001399,3]
[331869164,1720801841106,-849.69388,0.0001399,2]
[331869165,1720801841115,-350.00091019,0.0001399,2]
[331869166,1720801841124,-350.00091019,0.0001399,2]
[331869167,1720801841133,-1175.14,0.00013998,2]
[331869168,1720801841143,-500.0,0.00013998,2]
[331869169,1720801841153,-500.0,0.00013998,2]
[331869170,1720801841162,-500.0,0.00013998,2]
[331869171,1720801841172,-500.0,0.00013998,2]
[331869172,1720801841181,-500.0,0.00013998,2]
[331869173,1720801841190,-500.0,0.00013998,2]
[331869174,1720801841199,-1254.23,0.00013998,2]
[331869175,1720801841208,-778.02154041,0.00013999,5]
[331869176,1720801841218,-404.30449213,0.00013999,2]
[331869177,1720801841226,-300.0,0.00013999,2]
[331869178,1720801841236,-176.30734159,0.00013999,2]
[331869179,1720801841245,-2669070.2327185,0.00014,2]
[331869180,1720801841254,-155.21945676,0.00014,2]
[331869181,1720801841263,-1886.079593,0.00014,2]
[331869182,1720801841272,-2633306.89668107,0.00014,2]
[331869183,1720801841843,-3291.39065368,0.00014,2]
[331869184,1720801841858,-2430.53542353,0.00014,2]
[331869185,1720801841869,-891.51412651,0.00014,2]
[331869186,1720801841880,-55308.92641186,0.00014,2]
[331869187,1720801841891,-98246.85289365,0.00014,2]
[331869188,1720801841911,-392.85540526,0.00014,2]
[331869189,1720801841922,-274.7021428,0.00014,2]
[331869190,1720801841933,-1163.685,0.00014,2]
[331869191,1720801841944,-1120.33182961,0.00014,2]
[331869192,1720801841955,-2517.83629671,0.00014,2]
[331869193,1720801841978,-1176.69046004,0.00014,2]
[331869208,1720801843061,-184.75,0.00013043,2]
[331869209,1720801843071,-50029.3940525,0.00014,2]
[331869210,1720801843176,-41117.5554917,0.00014,2]
[331869216,1720801846236,-1920.73870148,0.00014,2]
[331869217,1720801846299,-612.67,0.00014,2]
[331869218,1720801846313,-9789.77510328,0.00014,2]
[331869219,1720801846327,-560.52287682,0.00014,2]
[331869220,1720801846360,-359.52516674,0.00014,2]
[331869221,1720801846606,-2123.07352372,0.00014,2]
[331869222,1720801846620,-1041.17810398,0.00014,2]
[331869223,1720801846633,-3127.80000001,0.00014,2]
[331869224,1720801846645,-3007.43990326,0.00014,2]
[331869226,1720801846658,-2836.5862804,0.00014,2]
[331869228,1720801846670,-1755.59834437,0.00014,2]
[331869235,1720801949235,485.85,0.00011339,2]
[331869238,1720802500877,484.42,0.00011113,2]
[331869239,1720802501428,155.0,0.00011199,2]
[331869246,1720802651321,151.0,0.00011199,2]
[331869247,1720802651530,151.0,0.00011199,2]
[331869248,1720802651950,151.0,0.00011199,2]
[331869249,1720802652584,151.0,0.00011199,2]
[331869250,1720802652922,151.0,0.00011199,2]
[331869251,1720802653280,151.0,0.00011199,2]
[331869252,1720802653624,198.0,0.00011199,2]
[331869304,1720803032653,-157.61,0.00012931,2]
[331869305,1720803032663,-1070.61,0.00012958,2]
[331869306,1720803032672,-250.0,0.00013002,2]
[331869307,1720803032681,-250.0,0.00013031,2]
[331869308,1720803032691,-236.14,0.00013043,2]
[331869309,1720803032700,-102.3718889,0.00013232,2]
[331869310,1720803032720,-48.84783591,0.00013232,2]
[331869311,1720803032730,-1000.0,0.00013318,2]
[331869312,1720803032739,-484.42,0.00013377,2]
[331869313,1720803032748,-547.0,0.00013437,2]
[331869314,1720803032758,-222.48848209,0.00013699,2]
[331869315,1720803032769,-41.60151791,0.00013699,2]
[331869316,1720803032779,-3271.13086808,0.00013719,2]
[331869317,1720803032788,-334.5742,0.000138,2]
[331869318,1720803032802,-758.0755,0.00013888,2]
[331869319,1720803032811,-320.1599463,0.00013888,2]
[331869320,1720803032821,-300.0,0.00013888,2]
[331869321,1720803032830,-572.62532796,0.00013889,2]
[331869322,1720803032841,-4130.53825066,0.00013889,2]
[331869323,1720803032851,-2198.46123883,0.00013889,2]
[331869324,1720803032861,-2198.46123883,0.00013894,2]
[331869325,1720803032873,-2198.46123883,0.00013898,2]
[331869326,1720803032883,-150.0,0.00013899,2]
[331869327,1720803032892,-9454.4712,0.000139,2]
[331869328,1720803032903,-11790.4693,0.000139,2]
[331869329,1720803032912,-199.30824592,0.000139,2]
[331869330,1720803032922,-355.48877246,0.000139,2]
[331869331,1720803032931,-8705.59748056,0.00013978,3]
[331869332,1720803032947,-433.81938179,0.00013978,3]
[331869333,1720803032959,-1035.17422718,0.00013978,3]
[331869334,1720803032977,-797.37400748,0.00013978,3]
[331869335,1720803032988,-819.28,0.00013978,3]
[331869337,1720803032999,-380.03886704,0.00013978,3]
[331869365,1720803038203,-575.9563864,0.00013978,3]
[331869366,1720803038313,-51240.0,0.00013978,3]
[331869367,1720803038371,-4989.50986296,0.00013978,3]
[331869368,1720803038482,-2501.34418487,0.00013978,3]
[331869575,1720803040654,-2119.98294082,0.00013978,3]
[331869577,1720803040663,-533.26843215,0.00013979,3]
[331869579,1720803040673,-992.57555336,0.00013979,3]
[331869584,1720803040708,-53672.71401879,0.00013979,3]
[331869585,1720803040718,-18399.5193348,0.0001398,3]
[331869587,1720803040728,-500.0,0.00013987,2]
[331869588,1720803040738,-543.55,0.00013987,2]
[331869590,1720803040747,-377.87,0.00013987,2]
[331869592,1720803040756,-500.0,0.00013987,2]
[331869593,1720803040766,-500.0,0.00013987,2]
[331869595,1720803040775,-500.0,0.00013987,2]
[331869597,1720803040783,-454.56341509,0.00013987,2]
[331869599,1720803040793,-500.0,0.00013987,2]
[331869601,1720803040808,-271.98684032,0.00013987,2]
[331869603,1720803040817,-417.3,0.00013987,2]
[331869605,1720803040826,-500.0,0.00013987,2]
[331869606,1720803040835,-649.29,0.00013987,2]
[331869608,1720803040845,-500.0,0.00013987,2]
[331869610,1720803040854,-362.43,0.00013987,2]
[331869612,1720803040863,-500.0,0.00013987,2]
[331869614,1720803040875,-500.0,0.00013987,2]
[331869616,1720803040884,-500.0,0.00013987,2]
[331869618,1720803040893,-500.0,0.00013987,2]
[331869620,1720803040904,-500.0,0.00013987,2]
[331869622,1720803040913,-500.0,0.00013987,2]
[331869624,1720803040923,-500.0,0.00013987,2]
[331869626,1720803040932,-627.98,0.00013987,2]
[331869627,1720803040942,-500.0,0.00013987,2]
[331869629,1720803040952,-500.0,0.00013987,2]
[331869631,1720803040962,-500.0,0.00013987,2]
[331869633,1720803040971,-500.0,0.00013987,2]
[331869635,1720803040980,-500.0,0.00013987,2]
[331869637,1720803040989,-500.0,0.00013987,2]
[331869639,1720803040999,-153629.17506892,0.00013988,2]
[331869641,1720803041010,-484.36626291,0.00013988,2]
[331869643,1720803041021,-1000.90222799,0.00013988,2]
[331869645,1720803041031,-11520.5981007,0.00013988,2]
[331869647,1720803041042,-4943.28,0.00013988,2]
[331869649,1720803041053,-923.08219611,0.00013988,2]
[331869651,1720803041065,-58345.18983886,0.00013988,2]
[331869655,1720803041090,-19258.45448065,0.00013988,2]
[331869762,1720803043285,-40599.11855816,0.00013988,2]
[331869781,1720803044510,-328.39001,0.00013988,2]
[331869782,1720803044527,-776.91339832,0.00013988,2]
[331869783,1720803044539,-311.7686698,0.00013988,2]
[331869784,1720803044552,-26875.5662015,0.00013988,2]
[331869785,1720803044563,-6644.55524363,0.00013988,2]
[331869786,1720803044579,-444.24779552,0.00013988,2]
[331869787,1720803044590,-728.79434185,0.00013988,2]
[331869788,1720803044606,-463.3999995,0.00013988,2]
[331869789,1720803044617,-337.63127197,0.00013988,2]
[331869790,1720803044628,-7290.45079688,0.00013988,2]
[331869791,1720803044639,-1625.7938459,0.00013988,2]
[331869792,1720803044651,-1013.4946033,0.00013988,2]
[331869793,1720803044667,-494.33920324,0.00013988,2]
[331869794,1720803044678,-2491.29718569,0.00013988,2]
[331869798,1720803046448,-500.0,0.00013987,2]
[331869799,1720803046458,-567.21405744,0.00013988,2]
[331869800,1720803046506,-315.43347274,0.00013988,2]
[331869801,1720803046517,-1006.8,0.00013988,2]
[331869802,1720803046564,-1453.2,0.00013988,2]
[331869803,1720803046576,-907.5,0.00013988,2]
[331869804,1720803046625,-706.3125,0.00013988,2]
[331869805,1720803046636,-1523.78274965,0.00013988,2]
[331869806,1720803046648,-5520.89832431,0.00013988,2]
[331869807,1720803046659,-362.64222045,0.00013988,2]
[331869808,1720803046688,-250.10479714,0.00013988,2]
[331869809,1720803046748,-12953.02507922,0.00013988,2]
[331869810,1720803046759,-32293.40316233,0.00013988,2]
[331869811,1720803046769,-8458.32602592,0.00013988,3]
[331869812,1720803046781,-9941.19330888,0.00013988,3]
[331869813,1720803046790,-23714.6231006,0.00013988,3]
[331869814,1720803046800,-500.0,0.00013989,2]
[331869815,1720803046812,-500.0,0.00013989,2]
[331869816,1720803046822,-500.0,0.00013989,2]
[331869817,1720803046832,-500.0,0.00013989,2]
[331869818,1720803046843,-500.0,0.00013989,2]
[331869819,1720803046852,-500.0,0.00013989,2]
[331869820,1720803046862,-500.0,0.00013989,2]
[331869822,1720803046871,-500.0,0.00013989,2]
[331869824,1720803046883,-500.0,0.00013989,2]
[331869826,1720803046892,-500.0,0.00013989,2]
[331869828,1720803046902,-241.66005132,0.00013989,2]
[331869830,1720803046912,-500.0,0.00013989,2]
[331869832,1720803046921,-500.0,0.00013989,2]
[331869834,1720803046931,-500.0,0.00013989,2]
[331869836,1720803046941,-500.0,0.00013989,2]
[331869838,1720803046950,-540.25,0.00013989,2]
[331869840,1720803046960,-500.0,0.00013989,2]
[331869842,1720803046970,-500.0,0.00013989,2]
[331869844,1720803046980,-500.0,0.00013989,2]
[331869846,1720803046990,-540.12,0.00013989,2]
[331869848,1720803046999,-500.0,0.00013989,2]
[331869850,1720803047008,-522.85,0.00013989,2]
[331869852,1720803047018,-500.0,0.00013989,2]
[331869854,1720803047027,-521.3,0.00013989,2]
[331869856,1720803047037,-500.0,0.00013989,2]
[331869858,1720803047047,-500.0,0.00013989,2]
[331869860,1720803047056,-500.0,0.00013989,2]
[331869862,1720803047065,-500.0,0.00013989,2]
[331869864,1720803047074,-428.50139173,0.00013989,2]
[331869866,1720803047086,-66.61466057,0.00013989,2]
[331869868,1720803047095,-342.45682595,0.00013989,2]
[331869870,1720803047104,-500.0,0.00013989,2]
[331869872,1720803047114,-562.96,0.00013989,2]
[331869874,1720803047123,-500.0,0.00013989,2]
[331869876,1720803047133,-568.22,0.00013989,2]
[331869878,1720803047142,-500.0,0.00013989,2]
[331869880,1720803047151,-500.0,0.00013989,2]
[331869882,1720803047162,-500.0,0.00013989,2]
[331869884,1720803047171,-500.0,0.00013989,2]